Cogmind - Beta 16 @@@ ROGUE MODE // 2025.11.30 @ 22:34:24 Player: lvl5hm Result: Destroyed by Autobeam Turret with Autobeam Performance ------------- Evolutions (0) 0 Regions Visited (2) 400 Robots Destroyed (18) 90 Value Destroyed (462) 462 Prototype IDs (0) 0 Alien Tech Used (0) 0 Bonus (0) 0 TOTAL SCORE: 952 Bonus ------- None Cogmind --------- Core Integrity 0/250 Matter 300/300 Energy 164/200 System Corruption 0% Temperature Cool (52) Movement Treading (160) Location -10/Subcaves Parts ------- > --- POWER (1) -------- Subdweller Power Source > --- PROPULSION (2) --- Improved Treads Improved Treads > --- UTILITY (2) ------ Large Storage Unit Makeshift Light Armor Plating > --- WEAPON (2) ------- Subdweller Beam Cannon > --- INVENTORY (15) --- Ion Engine Light Treads Improved Treads Terrain Scanner Seismic Detector Seismic Detector Medium Laser Subdweller Laser Assault Rifle Assault Rifle Assault Rifle Grenade Launcher Mining Laser Peak State ------------ > --- POWER ------------ Subdweller Power Source > --- PROPULSION ------- Improved Treads Improved Treads > --- UTILITY ---------- Large Storage Unit Makeshift Light Armor Plating > --- WEAPON ----------- Subdweller Beam Cannon Subdweller Machine Gun > --- INVENTORY -------- Ion Engine Light Treads Improved Treads Terrain Scanner Seismic Detector Seismic Detector Medium Laser Subdweller Laser Assault Rifle Assault Rifle Assault Rifle Grenade Launcher Mining Laser [Rating: 16] Favorites ----------- Power Ion Engine Engine Ion Engine Propulsion Light Treads Treads Light Treads Utility Seismic Detector Device Seismic Detector Storage Large Storage Unit Protection Makeshift Light Armor Plating Weapon Assault Rifle Energy Gun Subdweller Laser Energy Cannon Subdweller Beam Cannon Ballistic Gun Assault Rifle Special Weapon Mining Laser Build | -11 -10 -10 ------- Run | Yrd Mat Sub Slots Evolved . | . . . Power . | . . . Propulsion . | . . . Utility . | . . . Weapon . | . . . Parts Attached 21 | 7 5 9 Power 2 | 1 . 1 Engine 2 | 1 . 1 Core . | . . . Reactor . | . . . Propulsion 5 | 2 1 2 Treads 5 | 2 1 2 Leg . | . . . Wheel . | . . . Hover . | . . . Flight . | . . . Utility 5 | 2 2 1 Device 1 | 1 . . Storage 3 | 1 2 . Processor . | . . . Hackware . | . . . Protection 1 | . . 1 Artifact . | . . . Weapon 9 | 2 2 5 Energy Gun 2 | 1 . 1 Energy Cannon 1 | . . 1 Ballistic Gun 5 | 1 2 2 Ballistic Cannon . | . . . Launcher . | . . . Special Weapon 1 | . . 1 Impact Weapon . | . . . Slashing Weapon . | . . . Piercing Weapon . | . . . Special Melee Weapon . | . . . Unidentified Prototypes . | . . . Parts Lost 3 | . . 3 Power . | . . . Propulsion 1 | . . 1 Utility . | . . . Weapon 2 | . . 2 Highest Loss Streak 1 | . . 1 To Critical Strikes . | . . . Average Backups 9 | 1 8 12 Power . | . . . Propulsion 2 | . 2 2 Utility 1 | . 1 2 Weapon 5 | . 4 6 Tool/Special . | . . . Unused Backups 6 | . 1 5 Power . | . . . Propulsion 1 | . . 1 Utility 2 | . . 2 Weapon 3 | . 1 2 Tool/Special . | . . . Average Slot Usage (%) 99 | . 99 100 Engine 14 | . 14 14 Treads 27 | . 27 28 Device 12 | . 14 11 Storage 14 | . 14 14 Protection 1 | . . 2 Energy Gun 4 | . . 9 Ballistic Gun 21 | . 27 15 Peak Build Rating 16 | 7 9 16 Average Rating 10 | 5 8 12 On Entrance 5 | . 7 9 Avg Prop Armor Cover (%) . | . . . Naked Turns . | . . . Heaviest Build 41 | 14 30 41 Greatest Support 46 | 40 43 46 Greatest Overweight (x) . | . . . Average Overweight (x) . | . . . Largest Inventory Capacity 15 | 8 15 15 Average Capacity 12 | 7 11 15 Most Carried 14 | 2 10 14 Average Carried 9 | 1 8 12 Final Capacity 15 | 8 15 15 Final Carried 13 | 2 10 13 Class Distribution -------------------- 73% | Mutant 26% | Scavenger-Mutant Dominant Class ---------------- Mutant | -10/Materials Scavenger-Mutant | -10/Subcaves Resources | -11 -10 -10 ----------- Run | Yrd Mat Sub Matter Collected 685 | 281 175 229 Remotely . | . . . Salvage Created 642 | 145 212 285 Parts 41 | 15 7 19 Haulers Intercepted . | . . . Recyclers Shooed 1 | . 1 . Parts Field Recycled . | . . . Retrieved Matter . | . . . Parts Self-Destructed 15 | . . 15 Prevented . | . . . Parts Restored . | . . . Kills | -11 -10 -10 ------- Run | Yrd Mat Sub Combat Hostiles Destroyed 13 | . 4 9 Guns 13 | . 4 9 Classes Destroyed 6 | 2 2 2 Tunneler 3 | 3 . . Recycler 1 | 1 . . Watcher 1 | . 1 . Swarmer 3 | . . 3 Grunt 4 | . 4 . Subdweller 6 | . . 6 Best Kill Streak 3 | 2 2 3 Combat Bots Only 3 | . 1 3 Max Kills in Single Turn 1 | 1 1 1 Gunslinging . | . . . Exploded . | . . . Melee . | . . . Uniques/NPCs Destroyed . | . . . Combat | -11 -10 -10 -------- Run | Yrd Mat Sub Hostile Shots Fired 105 | . 15 90 Missed 26 | . . 26 Hits 79 | . 15 64 Projectile 79 | . 15 64 AOE 2 | . . 2 Critical Strikes 5 | . 3 2 Damage Taken 1121 | . 200 921 Core 252 | . 13 239 Absorbed by Shields . | . . . Regen/Repaired (Parts) 67 | . 67 . Core Remaining (%) 100 | 100 . . Volleys Fired 69 | 11 24 34 Largest 2 | 2 2 2 Hottest 110 | 70 40 110 Shots Fired 137 | 22 48 67 Gun 129 | 22 48 59 Cannon 7 | . . 7 Launcher . | . . . Special 1 | . . 1 Kinetic 103 | 11 48 44 Thermal 34 | 11 . 23 Explosive . | . . . Electromagnetic . | . . . Robot Hit Streak 13 | 7 7 13 Robot Miss Streak 4 | 3 4 3 Penetration Max . | . . . Secondary Targets 1 | . . 1 Max Gunslinging Chain 1 | . . 1 Shots Hit Robots 85 | 13 30 42 Core Hits 31 | 6 9 16 Critical Kills 2 | . 1 1 Critical Parts Destroyed . | . . . Critical Strikes 4 | 2 1 1 Burn 2 | 2 . . Destroy 2 | . 1 1 Melee Attacks . | . . . Impact . | . . . Slashing . | . . . Piercing . | . . . Sneak Attacks . | . . . Combat Hostiles . | . . . Follow-up Attacks . | . . . Damage Inflicted 1263 | 140 397 726 Guns 1210 | 140 397 673 Cannons 53 | . . 53 Explosions . | . . . Melee . | . . . Ramming . | . . . Kinetic 1002 | 54 397 551 Thermal 261 | 86 . 175 Explosive . | . . . Electromagnetic . | . . . Impact . | . . . Slashing . | . . . Piercing . | . . . Highest Corruption . | . . . Average Corruption . | . . . Corruption Purged . | . . . Corruption Blocked . | . . . Overload Shots . | . . . Overflow Damage 5 | . . 5 Projectiles 5 | . . 5 Explosions . | . . . Melee . | . . . Knockbacks . | . . . Impact . | . . . Kinetic . | . . . Secondary . | . . . Self-Inflicted Damage . | . . . Shots . | . . . Rammed . | . . . Targets Rammed . | . . . Kicked . | . . . Crushed . | . . . Highest Temperature 100 | 100 33 44 Average Temperature 30 | 36 16 28 Received Heat Transfer 384 | . 168 216 Siege Activations . | . . . Martial Activations . | . . . Shielding Activations . | . . . Robots Disrupted . | . . . Combat Hostiles . | . . . Robots Corrupted . | . . . Combat Hostiles . | . . . Parts Fried . | . . . Impact Corruptions . | . . . Robots Melted . | . . . Combat Hostiles . | . . . Parts Melted . | . . . Heat Transferred 631 | 407 . 224 Parts Sabotaged . | . . . Parts Stolen . | . . . Parts Stripped . | . . . Power Chain Reactions . | . . . Alert | -11 -10 -10 ------- Run | Yrd Mat Sub Maximum Alert Level . | . . . Low Security (%) 100 | 100 100 . Level 1 . | . . . Level 2 . | . . . Level 3 . | . . . Level 4 . | . . . Level 5 . | . . . High Security . | . . . Max Security . | . . . Peak Influence 59 | 10 59 . Initial . | . . . Average 8 | 1 9 . Influence Increases 340 | 20 155 165 Destroy 0b10 Robot/C 140 | . 80 60 Destroy 0b10 Robot/NC 25 | 20 5 . Destroy Leader 22 | . 22 . Destroy Structure 3 | . 3 . Lose Combat Pursuer 150 | . 45 105 Influence Decreases 215 | 20 155 40 Time Decay 205 | 20 155 30 Lost Part 10 | . . 10 Squads Dispatched 1 | . 1 . Investigation . | . . . Extermination . | . . . Reinforcement 1 | . 1 . Assault . | . . . Garrison . | . . . Intercept . | . . . Searches Triggered . | . . . Construction Impeded . | . . . Haulers Reinforced . | . . . Active Scanning Responses . | . . . Cargo Convoy Interrupts . | . . . Stealth | -11 -10 -10 --------- Run | Yrd Mat Sub Distress Signals 2 | . 2 . Communications Jammed . | . . . Distress Signals . | . . . Times Spotted 34 | . 21 13 Peak Tracking Total 6 | . 4 6 Tactical Retreats 5 | . 2 3 Traps | -11 -10 -10 ------- Run | Yrd Mat Sub Traps Triggered . | . . . Indirectly . | . . . Trap Hack Attempts . | . . . Triggered . | . . . Disarmed . | . . . Reprogrammed . | . . . Reused . | . . . Traps Extracted . | . . . Installed . | . . . Triggered . | . . . Machines | -11 -10 -10 ---------- Run | Yrd Mat Sub Machines Disabled . | . . . Max in Single Turn . | . . . Machines Repaired . | . . . Machines Dismantled . | . . . Machines Sabotaged . | . . . Overloaded Fab Kills . | . . . Hacking | -11 -10 -10 --------- Run | Yrd Mat Sub Machines Accessed 3 | . 2 1 Terminals 1 | . 1 . Fabricators . | . . . Repair Stations 1 | . 1 . Recycling Units . | . . . Scanalyzers . | . . . Garrison Access . | . . . Total Hacks 7 | . 3 4 Successful 6 | . 2 4 Failed 1 | . 1 . Catastrophic . | . . . Database Lockouts . | . . . Manual 1 | . 1 . Terminals 1 | . 1 . Fabricators . | . . . Repair Stations 2 | . 2 . Recycling Units . | . . . Scanalyzers . | . . . Garrison Access . | . . . Terminal Hacks 4 | . . 4 Record 4 | . . 4 Fabricator Hacks . | . . . Repair Station Hacks 2 | . 2 . Scan Component 1 | . 1 . Repair 1 | . 1 . Recycling Unit Hacks . | . . . Scanalyzer . | . . . Garrison Access Hacks . | . . . Unauthorized Hacks . | . . . Terminals . | . . . Fabricators . | . . . Repair Stations . | . . . Recycling Units . | . . . Scanalyzers . | . . . Garrison Access . | . . . Data Cores Recovered . | . . . Used . | . . . Hacking Detections 2 | . 2 . Full Trace Events . | . . . Feedback Events . | . . . Feedback Blocked . | . . . Robot Schematics Acquired . | . . . Robots Built . | . . . Authchips . | . . . Time . | . . . Total Robot Build Rating . | . . . Part Schematics Acquired . | . . . Parts Built . | . . . Authchips . | . . . Time . | . . . Total Part Build Rating . | . . . Part Studies Acquired . | . . . Parts Repaired 1 | . 1 . Time 26 | . 26 . Parts Recycled . | . . . Recycled Matter . | . . . Retrieved Matter . | . . . Retrieved Components . | . . . Parts Scanalyzed . | . . . Part Schematics Acquired . | . . . Parts Damaged . | . . . Bothacking | -11 -10 -10 ------------ Run | Yrd Mat Sub Used RIF Installer . | . . . Robots Hacked . | . . . Non-combat . | . . . Combat . | . . . Robot Hacks Applied . | . . . Relay Couplers Released . | . . . Fabnet Peak Effective % . | . . . Robots Rewired . | . . . Allies Hacked . | . . . Hacks Repelled . | . . . Allies | -11 -10 -10 -------- Run | Yrd Mat Sub Total Allies . | . . . Largest Group . | . . . Highest-Rated Group . | . . . Highest-Rated Ally . | . . . Total Orders . | . . . Ally Attacks . | . . . Total Damage . | . . . Kills . | . . . Allies Corrupted . | . . . Allies Melted . | . . . Intel | -11 -10 -10 ------- Run | Yrd Mat Sub Active Infowar (turns) 1617 | 72 909 636 Seismic 1617 | 72 909 636 Robot Analysis Total . | . . . Derelict Logs Recovered . | . . . Drone Launches . | . . . Drone Recoveries . | . . . Exploration | -11 -10 -10 ------------- Run | Yrd Mat Sub Turns Passed 1850 | 139 909 802 Spaces Moved 948 | 63 462 423 Core 4 | 4 . . Treads 944 | 59 462 423 Legs . | . . . Wheels . | . . . Hover . | . . . Flight . | . . . Fastest Speed 50 | 50 160 160 Average Speed 159 | 153 160 160 Slowest Speed 160 | 160 160 160 Overloaded Moves . | . . . Propulsion Burnouts . | . . . Robots Hopped . | . . . Potential Cave-ins . | . . . Cave-ins Triggered . | . . . Exploration Rate (%) 28 | 5 55 25 Regions Visited 2 Branch Regions 1 Pre-discovered Areas 1 | . . 1 Known Exits Taken . | . . . Unknown Exits Taken 2 | 1 1 . Scrap Searched . | . . . Spaces Dug . | . . . Terrain Destroyed 3 | . . 3 Melee . | . . . Projectile 3 | . . 3 AOE . | . . . Terrain Rammed . | . . . Walls Destroyed . | . . . Machines Disabled . | . . . Actions | -11 -10 -10 --------- Run | Yrd Mat Sub Total 1143 | 82 585 476 Wait 86 | . 80 6 Move 946 | 62 461 423 Hop . | . . . Pick Up 14 | 2 9 3 Fast Attach 8 | 7 1 . Attach 2 | . . 2 Detach . | . . . Swap 13 | . 5 8 Drop 5 | . 5 . Fire 69 | 11 24 34 Melee . | . . . Ram . | . . . Kick . | . . . Crush . | . . . Escape Stasis . | . . . Rewire . | . . . Trap . | . . . Miscellaneous . | . . . Route ------- -11/Scrapyard -10/Materials (discovered 2 exits: [*Mat] / *Sub) -10/Subcaves (discovered 2 exits: [*Mat] / [*Rec]) History --------- Turn | Location | Event 46 | -11/Scrapyard | Discovered new exit (range 15) 140 | -11/Scrapyard | Entered Materials 317 | -10/Materials | Build established: Mutant 620 | -10/Materials | Discovered new exit (range 12) 706 | -10/Materials | Discovered new exit (range 5) 1022 | -10/Materials | Repaired Lgt. Treads 1049 | -10/Materials | Entered Subcaves 1050 | -10/Subcaves | Approached by a straggling Scientist 1055 | -10/Subcaves | Ambushed by Subdwellers from Twisted Machinery 1297 | -10/Subcaves | Discovered new exit (range 11) 1339 | -10/Subcaves | Shifting Twisted Machinery released Sub. Beam Cannon 1367 | -10/Subcaves | Shifting Twisted Machinery released Mak. Light Armor Plating 1370 | -10/Subcaves | Shifting Twisted Machinery released Sub. Power Source 1506 | -10/Subcaves | Shifting Twisted Machinery released Barrage Gun 1514 | -10/Subcaves | Build established: Scavenger-Mutant 1726 | -10/Subcaves | Ambushed by Subdweller buried in earth 1731 | -10/Subcaves | Core integrity fell below 50% 1778 | -10/Subcaves | Core integrity fell below 20% 1808 | -10/Subcaves | Visited Clippyterm 1813 | -10/Subcaves | Learned location of Section 7 (-2) 1813 | -10/Subcaves | Learned Research security intel 1845 | -10/Subcaves | Discovered new exit (range 10) 1851 | -10/Subcaves | Destroyed by Autobeam Turret with Autobeam Last Messages --------------- It looks like you're trying to take over the world, would you like help? World map updated: -2/Section 7. >>Record "0b10 Defenses" It looks like you're afraid of guards, would you like help? Data stored: Research security intel. >>Record! "Optimus" It looks like you're curious about the current leader of 0bPrime. Optimus is well liked, but certainly not being up front with the UFD as a whole. 01829_ Subatomizers dissect the Sub. Power Source. 01842_ Acquired 10 matter. 01844_ Acquired 6 matter. 01845_ Acquired 4 matter. 01845_ EXIT=FOUND 01847_ Acquired 2 matter. 01851_ Sub. Machine Gun destroyed. Map ----- +----------------------------------------------------+ | ?????????????????????????????????????????????????? | | ?????????????????????????????????????????????????? | | ?????????????????????????????????????????????????? | | ?????????????????????????????????????????????????? | | ?????????????????????????????????????????????????? | | ???????????????????????#######???????????????????? | | ???????????????????????#"""""#???????????????????? | | ???????????????????????#""X""#???????????????????? | | ???????????????????????#" "#???????????????????? | | ???????????????????????### ###??????????######???? | | ???????????????????????### ##?????????### # ##??? | | ????????????????####???# ##????##### #??? | | ??????????????? #### ###### # = #??# | | ?????????????? ## ! & #??# | | ?????????????# ## & #??# | | ??????????????# ## ## % ""#### | | ??????????????## ???## ## %! ### # | | ?????????????????????### "* # | | ???????????????????????# ##" % # | | ???????????????????????# # # ## #### # | | ???????????????????????# ###########??## # | | ??????????????????????## #?????????????## | | ??????????????????????# #?????????????## # | | ??????????????????????# ##?????????????# # | | ??????????????????????# ##??????????????# # | | ??????????????????????# @#" "#???????????????# | | ??????????????????????# % #####???????????????# | | ??????????????????????# ;???????????????????# | | ????????????????????? ???????????????????# | | ???????????????????? ??????????????????# | | ???????????????????# ??????????????????# | | ???????????????????#" t t "?????????????????# | | ???????????????????#" " " "?????????????????## | | ???????????????????#"""" """"#?????????????????# | | ???????????????????#####<#####?????????????????# | | ???????????????????????##??????????????????????## | | ????????????????????????????????????????????????## | | ?????????????????????????????????????????????????# | | ?????????????????????????????????????????????????# | | ???????????????????????????????????????????????### | | ???????????????????????????????????????????????# | | ???????????????????????????????????????????????# | | ??????????????????????????????????????????????## | | ??????????????????????????????????????????????# | | ??????????????????????????????????????????????## | | ???????????????????????????????????????????????## | | ????????????????????????????????????????????????## | | ?????????????????????????????????????????????????# | | ?????????????????????????????????????????????????? | | ?????????????????????????????????????????????????? | +----------------------------------------------------+ Best States ------------- Heat Dissipation 25 Energy Generation 10 Energy Capacity 250 Matter Stores 300 Matter Capacity 300 Sight Range 16 Terrain Scan Density 10 Armor Coverage 100 Evasion (%) 40 Recoil Reduction 2 Item Schematics ----------------- None Robot Schematics ------------------ None Fabricated ------------ Nothing Repaired ---------- Lgt. Treads | 52% | -10/Materials Studied --------- None Alien Tech Used ----------------- None Achievements -------------- None Challenges ------------ None Game ------ Seed ThermalMeleeRouter Manual? 0 Play Time 00:13:50 Cumulative 253.3 hours Start 2025.11.30 @ 21:34:28 End 2025.11.30 @ 22:34:24 Sessions 1 Manual Loads 0 Difficulty Rogue Special Mode None Game No. 189 Rogue 189 Adventurer 0 Explorer 0 Win Type - Total 11 Types 6/0/2/1/0/0/0/1/0/1 Lore% 67 Gallery% 74 Achievement% 67 Wizard Run 0 Options --------- Layout 2 ASCII 0 Keyboard 1 Movement Arrows Keybinds 0 Fullscreen 1 Font 32/Tamsyn Map View 50x44 Zoom Use 0% Tactical HUD 1 Map Filters NONE Filters NONE Steam 1 RUN: 45ecbb88-bbbc-4860-87ff-47de7fc542eb